bitfinex/quotes_SOLUSD_20240826
["timestamp","ask_amount","ask_price","bid_price","bid_amount"]
[1724664359430,16.5305,159.34,159.26,30.26345915]
[1724664359744,16.5305,159.34,159.21,65.0]
[1724664359745,16.5305,159.34,159.28,30.26345915]
[1724664359933,18.09977988,159.34,159.28,30.26345915]
[1724664360235,1.56929848,159.33,159.26,30.26345915]
[1724664360435,1.56936821,159.32,159.26,30.26345915]
[1724664360634,1.56936821,159.32,159.23,30.26345915]
[1724664360926,1.56936821,159.32,159.21,75.26345915]
[1724664361534,1.56936821,159.32,159.23,30.26345915]
[1724664362724,1.56936821,159.32,159.25,30.26345915]
[1724664364527,1.56951083,159.33,159.25,30.26345915]
[1724664364853,16.5305,159.34,159.29,30.26345915]
[1724664365147,390.3,159.37,159.31,30.26345915]
[1724664365353,6.4086,159.39,159.33,30.26345915]
[1724664365731,1.5689035,159.38,159.33,30.26345915]
[1724664365957,1.5689035,159.38,159.31,30.26345915]
[1724664366133,7.97752425,159.39,159.33,30.26345915]
[1724664368827,1.56890468,159.38,159.29,30.26345915]
[1724664370839,391.86890468,159.38,159.29,30.26345915]
[1724664371153,391.86890468,159.38,159.27,30.26345915]
[1724664371450,451.5979,159.37,159.25,30.26345915]
[1724664371634,451.5979,159.37,159.24,15.2728]
[1724664371635,1.56952288,159.36,159.29,30.26345915]
[1724664371833,1.56919521,159.35,159.29,30.26345915]
[1724664372035,16.2979,159.37,159.31,30.26345915]
[1724664372258,6.4086,159.39,159.35,30.26345915]
[1724664373822,15.8408,159.41,159.35,30.26345915]
[1724664375039,1.56856669,159.4,159.33,30.26345915]
[1724664375242,1.56886104,159.39,159.33,30.26345915]
[1724664379037,15.8408,159.41,159.35,30.26345915]
[1724664379362,15.8408,159.41,159.29,7.41770811]
[1724664379363,15.8408,159.41,159.37,30.26345915]
[1724664381647,1.56855957,159.4,159.35,30.26345915]
[1724664381850,1.5687074,159.39,159.35,30.26345915]
[1724664382747,1.56877113,159.4,159.35,30.26345915]
[1724664383043,15.8408,159.41,159.35,30.26345915]
[1724664383044,1.56876006,159.39,159.35,30.26345915]
[1724664383977,1.56871926,159.4,159.35,30.26345915]
[1724664384278,15.8408,159.41,159.35,30.26345915]
[1724664384651,1.56871673,159.4,159.35,30.26345915]
[1724664385374,15.8408,159.41,159.37,30.26345915]
[1724664386638,1.56856047,159.4,159.37,30.26345915]
[1724664386970,15.8408,159.41,159.37,30.26345915]
[1724664387681,18.77,159.49,159.31,15.8614]
[1724664387682,406.8608,159.45,159.39,30.26345915]
[1724664388680,406.8608,159.45,159.41,30.26345915]
[1724664388846,1.56828542,159.44,159.39,30.26345915]
[1724664390263,1.56828542,159.44,159.37,30.26345915]
[1724664390551,1.56828542,159.44,159.35,30.26345915]
[1724664391265,6.0335,159.43,159.3,7.41770811]
[1724664391462,46.56892859,159.42,159.31,30.26345915]
[1724664391774,6.0335,159.43,159.33,30.26345915]
[1724664391975,391.86874482,159.42,159.33,30.26345915]
[1724664392674,391.86874482,159.42,159.37,30.26345915]
[1724664392887,390.3,159.42,159.37,30.26345915]
[1724664396894,1.56834462,159.41,159.35,30.26345915]
[1724664397101,1.56834462,159.41,159.29,14.39920233]
[1724664397102,1.56834462,159.41,159.33,30.26345915]
[1724664398093,391.86834462,159.41,159.33,30.26345915]
[1724664398286,6.137,159.4,159.33,30.26345915]
[1724664398487,1.56893091,159.39,159.31,30.26345915]
[1724664402094,1.56893091,159.39,159.32,1.25621153]
[1724664402394,1.56893091,159.39,159.32,4.76875827]
[1724664403300,17.01923091,159.39,159.32,4.76875827]
[1724664403591,17.01923091,159.39,159.32,1.25621153]
[1724664403903,407.31923091,159.39,159.31,30.26345915]
[1724664405302,405.7503,159.39,159.32,4.76921637]
[1724664405493,1.56904125,159.38,159.33,30.26345915]
[1724664407380,405.7503,159.39,159.33,30.26345915]
[1724664407579,405.7503,159.39,159.34,4.76886139]
[1724664408605,405.7503,159.39,159.34,4.76889306]
[1724664408803,405.7503,159.39,159.34,1.25624936]
[1724664408976,405.7503,159.39,159.34,4.76891164]
[1724664409385,1.56889133,159.38,159.34,4.76891164]
[1724664409932,1.56889133,159.38,159.32,9.61238131]
[1724664410225,1.56889133,159.38,159.33,4.7689841]
[1724664410604,1.56889133,159.38,159.33,1.25626246]
[1724664410921,46.56889133,159.38,159.28,30.26345915]
[1724664411108,390.3,159.37,159.29,10.86864377]
[1724664411305,390.3,159.37,159.3,4.7689841]
[1724664411306,1.56918817,159.36,159.3,4.7689841]
[1724664411610,1.56918817,159.35,159.31,4.7689841]
[1724664411821,1.56918817,159.35,159.3,4.7689841]
[1724664412002,1.56918794,159.36,159.31,4.7689841]
[1724664412202,1.56918794,159.36,159.32,1.25626246]
[1724664412403,390.3,159.37,159.31,10.86864377]
[1724664413336,1.56918497,159.36,159.31,10.86864377]
[1724664413507,1.56918497,159.36,159.31,10.86959359]
[1724664415301,1.56918497,159.36,159.31,4.7689841]
[1724664415926,1.56918394,159.35,159.31,4.7689841]
[1724664416419,1.56918377,159.36,159.3,30.26345915]
[1724664416720,1.56918377,159.36,159.31,4.7697532]
[1724664416903,1.56918358,159.35,159.31,3.5133166]
[1724664417102,1.56918358,159.35,159.31,14.38361468]
[1724664417305,1.56918358,159.35,159.31,15.71449263]
[1724664417521,1.56918357,159.36,159.31,15.71449263]
[1724664418222,1.56918336,159.36,159.31,15.71449263]
[1724664418430,1.56911402,159.35,159.31,15.71449263]
[1724664418624,1.56911402,159.35,159.31,15.71451874]
[1724664418946,390.3,159.37,159.31,15.71451874]
[1724664419118,390.3,159.37,159.32,33.77674507]
[1724664419445,390.3,159.37,159.34,30.26345915]
[1724664420151,390.3,159.37,159.35,3.51247531]
[1724664420449,15.8963,159.43,159.36,30.26345915]
[1724664420612,1.56861054,159.42,159.36,30.26345915]
[1724664420819,1.56861054,159.42,159.37,3.51208048]
[1724664421543,1.56861054,159.42,159.37,3.51206118]
[1724664421745,1.56861054,159.42,159.36,30.26345915]
[1724664422045,1.56861054,159.42,159.32,30.26345915]
[1724664422351,1.56861054,159.42,159.33,9.61183633]
[1724664422525,46.56861054,159.42,159.33,9.61183633]
[1724664422723,46.56861054,159.42,159.34,3.51251513]
[1724664424438,1.56861054,159.42,159.36,30.26345915]
[1724664424945,391.86861054,159.42,159.36,30.26345915]
[1724664425349,391.86861054,159.42,159.34,30.26345915]
[1724664425556,391.86861054,159.42,159.29,7.41770811]
[1724664425557,45.0,159.41,159.35,3.51230527]
[1724664425724,1.56893294,159.4,159.33,9.61172317]
[1724664426054,1.56894484,159.39,159.34,3.51247225]
[1724664426218,15.7446,159.37,159.34,3.51247225]
[1724664426423,1.56917583,159.36,159.3,30.26345915]
[1724664426624,1.56917583,159.36,159.31,9.61172317]
[1724664426827,1.56917583,159.36,159.32,3.51247225]
[1724664428027,1.56906147,159.35,159.32,3.51247225]
[1724664428231,6.2763,159.33,159.27,9.61172317]
[1724664428437,1.56952654,159.32,159.26,9.61172317]
[1724664428660,1.56952654,159.32,159.27,3.51247225]
[1724664429017,1.56952654,159.32,159.27,3.51438245]
[1724664429018,6.2778,159.3,159.27,3.51438245]
[1724664429248,18.86,159.27,159.1,17.774069]
[1724664429428,36.85125915,159.28,159.15,6.51490145]
[1724664429429,1.57055902,159.26,159.15,6.51490145]
[1724664429741,7.84955902,159.26,159.17,31.08526745]
[1724664430048,45.0,159.25,159.17,0.8218083]
[1724664430353,1.57050945,159.24,159.17,0.8218083]
[1724664430531,45.0,159.25,159.17,0.8218083]
[1724664430532,1.5705101,159.23,159.17,0.8218083]
[1724664431341,6.3191,159.19,159.17,0.8218083]
[1724664431640,1.57124853,159.18,159.17,0.8218083]
[1724664433068,6.3191,159.19,159.17,0.8218083]
[1724664433352,1.57070063,159.22,159.17,0.8218083]
[1724664436365,6.0286,159.23,159.17,0.8218083]
[1724664436563,6.3893,159.27,159.17,0.8218083]
[1724664436860,46.57055232,159.26,159.17,0.8218083]
[1724664437247,1.57055232,159.26,159.17,0.8218083]
[1724664439157,46.57055232,159.26,159.17,0.8218083]
[1724664439343,1.57055232,159.26,159.17,0.8218083]
[1724664442674,1.57055232,159.26,159.17,31.08526745]
[1724664442675,1.57022802,159.26,159.17,31.08526745]
[1724664442877,1.57022802,159.26,159.18,45.0]
[1724664443575,1.57002084,159.27,159.18,45.0]
[1724664443878,1.57002084,159.27,159.17,31.08526745]
[1724664443879,1.57007786,159.26,159.17,0.8218083]
[1724664445855,31.83353701,159.26,159.17,0.8218083]
[1724664447285,30.26345915,159.26,159.17,0.8218083]
[1724664447886,1.57028637,159.25,159.17,0.8218083]
[1724664448656,46.57028637,159.25,159.17,0.8218083]
[1724664449063,1.57028637,159.25,159.17,0.8218083]
[1724664451200,390.3,159.3,159.17,0.8218083]
[1724664451201,420.56345915,159.3,159.17,0.8218083]
[1724664451401,65.0,159.29,159.17,0.8218083]
[1724664451753,1.57024326,159.28,159.17,0.8218083]
[1724664452088,30.26345915,159.27,159.17,0.8218083]
[1724664452297,46.57041371,159.26,159.17,0.8218083]
[1724664452789,30.26345915,159.25,159.17,0.8218083]
[1724664452951,1.57045382,159.24,159.17,0.8218083]
[1724664453157,30.26345915,159.25,159.17,0.8218083]
[1724664453158,1.57044927,159.23,159.17,0.8218083]
[1724664453686,38.18430842,159.23,159.17,0.8218083]
[1724664453886,45.0,159.22,159.17,0.8218083]
[1724664454067,1.57084596,159.21,159.17,0.8218083]
[1724664454385,1.57084994,159.2,159.17,0.8218083]
[1724664458187,1.57090734,159.19,159.17,0.8218083]
[1724664458588,45.0,159.22,159.17,0.8218083]
[1724664459576,1.57087632,159.21,159.17,0.8218083]
[1724664459773,1.57090597,159.2,159.17,0.8218083]
[1724664460307,45.0,159.22,159.17,0.8218083]
[1724664460614,1.57090609,159.21,159.17,0.8218083]
[1724664460815,1.57093476,159.2,159.17,0.8218083]
[1724664462096,1.57090497,159.2,159.17,0.8218083]
[1724664462408,6.3504,159.23,159.17,0.8218083]
[1724664462613,12.14069174,159.26,159.17,0.8218083]
[1724664462784,1.57054509,159.25,159.17,0.8218083]
[1724664463121,12.14069174,159.24,159.17,0.8218083]
[1724664463409,12.14069174,159.22,159.17,0.8218083]
[1724664463702,12.14069174,159.24,159.17,0.8218083]
[1724664464008,46.57063171,159.23,159.17,0.8218083]
[1724664464508,1.57063171,159.23,159.17,0.8218083]
[1724664464681,45.0,159.24,159.17,0.8218083]
[1724664466111,427.14277069,159.27,159.17,0.8218083]
[1724664466310,391.8705141,159.26,159.17,15.8220083]
[1724664467086,390.3,159.26,159.17,15.8220083]
[1724664467584,45.0,159.25,159.17,15.8220083]
[1724664468499,1.5704721,159.24,159.17,15.8220083]
[1724664468701,1.5704718,159.23,159.17,15.8220083]
[1724664470315,45.0,159.25,159.17,15.8220083]
[1724664470620,45.0,159.26,159.17,15.8220083]
[1724664471624,1.5706491,159.25,159.17,15.8220083]
[1724664472317,45.0,159.26,159.17,15.8220083]
[1724664472698,1.57046711,159.25,159.17,15.8220083]
[1724664472899,391.87046711,159.25,159.17,15.8220083]
[1724664474712,391.87046711,159.25,159.18,3.48486277]
[1724664475425,391.87046711,159.25,159.19,1.02866123]
[1724664475426,390.3,159.25,159.19,1.02866123]
[1724664475628,390.3,159.25,159.19,3.48486277]
[1724664475930,390.3,159.25,159.2,30.33857069]
[1724664476104,390.3,159.25,159.21,3.48486277]
[1724664477426,390.3,159.25,159.22,17.7560311]
[1724664477634,390.3,159.25,159.22,16.4988]
[1724664477937,390.3,159.33,159.24,30.33857069]
[1724664478098,1.56957633,159.32,159.24,30.33857069]
[1724664478298,1.56957633,159.32,159.25,4.74002026]
[1724664478497,1.56957633,159.32,159.25,1.25701744]
[1724664478829,1.56957633,159.32,159.25,4.74008535]
[1724664479008,1.56957633,159.32,159.25,1.25701744]
[1724664479520,1.56957633,159.32,159.23,4.74030101]
[1724664480423,420.63857069,159.34,159.24,31.59558813]
[1724664480424,1.56958528,159.33,159.24,31.59558813]
[1724664480726,1.56958528,159.33,159.22,53.45497069]
[1724664480899,1.56958528,159.33,159.25,1.25705016]
[1724664481096,1.56958528,159.33,159.23,4.74030009]
[1724664481300,6.277,159.31,159.23,1.25704572]
[1724664481523,1.56995433,159.3,159.23,1.25704572]
[1724664481731,1.56990039,159.29,159.23,1.25704572]
[1724664482026,396.5767,159.32,159.23,1.25704572]
[1724664482193,46.56980411,159.31,159.23,1.25704572]
[1724664482398,1.56980411,159.31,159.23,1.25704572]
[1724664482607,1.56980411,159.31,159.23,4.74057178]
[1724664483017,1.56980411,159.31,159.23,1.25704572]
[1724664483399,1.56980411,159.31,159.23,4.74012589]
[1724664484523,1.56980411,159.31,159.24,30.33857069]
[1724664484703,390.3,159.32,159.24,30.33857069]
[1724664485032,1.56958405,159.31,159.24,30.33857069]
[1724664486615,390.3,159.32,159.24,30.33857069]
[1724664487310,1.56958392,159.31,159.24,30.33857069]
[1724664488011,1.56958392,159.31,159.26,12.11962486]
[1724664488311,6.2778,159.3,159.22,23.1164]
[1724664488532,1.5699294,159.29,159.22,23.1164]
[1724664489224,46.5699294,159.29,159.22,16.4988]
[1724664489535,12.11962486,159.28,159.22,16.4988]
[1724664489736,46.57012972,159.27,159.22,16.4988]
[1724664489934,1.57019354,159.26,159.18,22.4448]
[1724664490238,391.87019354,159.26,159.18,22.4448]
[1724664492017,390.3,159.26,159.18,22.4448]
[1724664492629,1.57023584,159.25,159.18,22.4448]
[1724664493945,390.3,159.26,159.19,30.3324634]
[1724664496631,390.3,159.26,159.18,22.4448]
[1724664496632,390.3,159.26,159.21,30.3324634]
[1724664499026,6.2775,159.3,159.21,30.3324634]
[1724664499356,1.56997054,159.29,159.21,30.3324634]
[1724664500563,1.56974488,159.31,159.21,30.3324634]
[1724664500874,1.56974488,159.31,159.23,30.3324634]
[1724664502353,1.56974488,159.31,159.22,16.2076]
[1724664502354,390.3,159.32,159.25,36.8327634]
[1724664502662,390.3,159.34,159.27,30.3324634]
[1724664502850,390.3,159.34,159.29,45.9219634]
[1724664503442,390.3,159.38,159.29,45.9219634]
[1724664503789,1.56914272,159.37,159.29,45.9219634]
[1724664506268,390.3,159.38,159.29,45.9219634]
[1724664506572,390.3,159.38,159.31,30.3324634]
[1724664506981,390.3,159.38,159.32,1.02571208]
[1724664507143,390.3,159.39,159.31,30.3324634]
[1724664507471,390.3,159.39,159.33,30.3324634]
[1724664507676,390.3,159.39,159.33,31.35775311]
[1724664510077,390.3,159.39,159.33,30.3324634]
[1724664510455,390.3,159.39,159.34,1.02524261]
[1724664510666,390.3,159.39,159.33,30.3324634]
[1724664510971,390.3,159.41,159.33,30.3324634]
[1724664511181,390.3,159.41,159.32,6.5003]
[1724664511182,6.2739,159.39,159.32,6.5003]
[1724664511482,6.2739,159.39,159.29,45.9219634]
[1724664511483,6.2748,159.37,159.29,15.5895]
[1724664511668,1.56914399,159.36,159.29,15.5895]
[1724664511973,1.56914399,159.35,159.29,15.5895]
[1724664512968,6.2751,159.36,159.29,15.5895]
[1724664513176,36.4317634,159.39,159.29,16.61580789]
[1724664513473,1.56939565,159.37,159.29,15.5895]
[1724664513844,6.2751,159.36,159.29,15.5895]
[1724664514050,1.5693834,159.35,159.29,15.5895]
[1724664514280,46.5693834,159.35,159.29,15.5895]
[1724664514578,52.8448834,159.35,159.25,46.0923634]
[1724664514776,390.3,159.34,159.25,46.0923634]
[1724664514990,1.56948479,159.33,159.25,46.0923634]
[1724664515967,390.3,159.34,159.25,46.0923634]
[1724664518081,1.56932954,159.33,159.25,46.0923634]
[1724664518580,390.3,159.34,159.25,46.0923634]
[1724664519468,1.56933006,159.33,159.25,46.0923634]
[1724664520687,1.56933166,159.35,159.25,46.0923634]
[1724664523387,390.3,159.36,159.27,30.3324634]
[1724664523687,390.3,159.36,159.3,22.164]
[1724664524168,390.3,159.36,159.31,13.1373572]
[1724664524485,390.3,159.36,159.31,12.11145454]
[1724664525966,390.3,159.39,159.3,52.44132289]
[1724664526297,1.56902321,159.38,159.3,52.44132289]
[1724664526584,7.84352321,159.38,159.3,22.164]
[1724664527165,6.2751,159.36,159.3,15.8811]
[1724664527455,1.56933255,159.35,159.3,15.8811]
[1724664532690,390.3,159.36,159.3,15.8811]
[1724664533097,1.56913064,159.35,159.3,15.8811]
[1724664534183,390.3,159.36,159.31,1.02609034]
[1724664534387,390.3,159.36,159.3,15.8811]
[1724664534901,390.3,159.36,159.3,46.15842289]
[1724664535395,390.3,159.36,159.32,36.56612289]
[1724664535598,6.2732,159.41,159.32,36.56612289]
[1724664535799,1.56880299,159.4,159.32,36.56612289]
[1724664536099,1.56880442,159.39,159.32,6.2888]
[1724664536309,52.84270442,159.39,159.32,6.2888]
[1724664536510,6.2744,159.38,159.3,15.8811]
[1724664536682,1.56915894,159.37,159.3,15.8811]
[1724664539381,6.2753,159.36,159.3,15.8811]
[1724664539596,1.56926542,159.35,159.3,15.8811]
[1724664541385,6.2759,159.34,159.26,16.4511]
[1724664541583,391.86947545,159.33,159.26,16.4511]
[1724664541908,1.56967278,159.32,159.26,16.4511]
[1724664542085,46.56967278,159.32,159.21,16.4511]
[1724664542287,390.3,159.31,159.22,1.25723187]
[1724664542489,390.3,159.31,159.22,4.74120958]
[1724664542490,391.86987268,159.3,159.22,4.74120958]
[1724664542782,391.86987268,159.3,159.21,16.4511]
[1724664542783,76.84739696,159.29,159.21,16.4511]
[1724664543704,6.2787,159.27,159.21,16.4511]
[1724664543880,1.57021972,159.26,159.21,16.4511]
[1724664546801,391.87000095,159.28,159.21,16.4511]
[1724664550521,398.14820095,159.28,159.21,16.4511]
[1724664552703,390.3,159.27,159.21,16.4511]
[1724664552911,1.57019859,159.26,159.21,16.4511]
[1724664558618,391.87019859,159.26,159.21,16.4511]
[1724664560449,390.3,159.26,159.21,28.5838614]
[1724664561440,1.5700478,159.25,159.21,28.5838614]
[1724664561950,1.57005954,159.27,159.21,16.4511]
[1724664562115,1.57006146,159.26,159.21,16.4511]
[1724664563127,1.57005232,159.27,159.21,16.4511]
[1724664563323,7.84914979,159.26,159.21,16.4511]
[1724664563529,1.57004979,159.26,159.21,16.4511]
[1724664564048,46.57004979,159.26,159.21,16.4511]
[1724664564346,52.84934979,159.26,159.21,16.4511]
[1724664564549,443.14934979,159.26,159.21,16.4511]
[1724664564925,6.2795,159.25,159.21,16.4511]
[1724664565148,1.57030162,159.24,159.21,16.4511]
[1724664565352,1.57030223,159.23,159.17,16.3198083]
[1724664566748,13.70306363,159.23,159.17,16.3198083]
[1724664567248,1.57061787,159.22,159.17,16.3198083]
[1724664567952,7.85121787,159.22,159.17,16.3198083]
[1724664568154,12.1327614,159.21,159.17,0.8218083]
[1724664568473,1.57078059,159.2,159.17,0.8218083]
[1724664570376,57.1327614,159.26,159.17,0.8218083]
[1724664570575,27.85031554,159.25,159.17,0.8218083]
[1724664570744,45.0,159.24,159.17,0.8218083]
[1724664570955,396.579,159.26,159.17,1.8509555]
[1724664571267,396.579,159.26,159.17,0.8218083]
[1724664571578,52.84988948,159.25,159.17,0.8218083]
[1724664572045,52.84988948,159.25,159.18,16.0842]
[1724664572249,390.3,159.26,159.18,16.0842]
[1724664572250,396.579,159.26,159.18,16.0842]
[1724664572456,1.5704499,159.25,159.18,16.0842]
[1724664574277,52.8500499,159.25,159.18,16.0842]
[1724664574469,6.2799,159.24,159.18,16.0842]
[1724664574782,1.57049454,159.23,159.18,16.0842]
[1724664576368,6.2821,159.18,159.17,0.8218083]
[1724664576879,95.33244603,159.18,159.17,0.8218083]
[1724664577091,1.5710588,159.2,159.17,0.8218083]
[1724664577254,76.90350483,159.2,159.17,0.8218083]
[1724664577581,20.0,159.19,159.17,0.8218083]
[1724664577752,46.5710588,159.2,159.17,0.8218083]
[1724664577753,1.57100982,159.18,159.17,0.8218083]
[1724664580967,1.57092853,159.19,159.17,0.8218083]
[1724664581652,1.57085453,159.22,159.17,0.8218083]
[1724664581857,52.85165453,159.22,159.17,0.8218083]
[1724664582163,1.57085453,159.22,159.17,0.8218083]
[1724664582367,391.87085453,159.22,159.17,0.8218083]
[1724664587911,390.3,159.23,159.17,32.18354369]
[1724664588075,390.3,159.23,159.17,32.4118393]
[1724664588390,390.3,159.26,159.18,1.02904201]
[1724664588598,390.3,159.29,159.19,30.33244603]
[1724664588775,1.5699875,159.28,159.2,16.396]
[1724664588968,390.3,159.31,159.22,6.2642]
[1724664589169,390.3,159.33,159.23,30.33244603]
[1724664589370,36.69054603,159.36,159.23,30.33244603]
[1724664589371,391.86964904,159.32,159.24,15.9973]
[1724664589603,390.3,159.32,159.27,30.33244603]
[1724664589888,390.3,159.32,159.25,30.33244603]
[1724664590062,390.3,159.32,159.26,45.0]
[1724664590287,390.3,159.38,159.29,30.33244603]
[1724664590486,390.3,159.38,159.31,30.33244603]
[1724664590788,390.3,159.42,159.32,1.02535609]
[1724664591391,390.3,159.42,159.31,30.33244603]
[1724664591720,6.274,159.39,159.27,52.55574603]
[1724664591892,1.56903052,159.38,159.28,45.0]
[1724664592520,1.56903052,159.38,159.27,22.2233]
[1724664592692,1.56903052,159.38,159.27,52.55574603]
[1724664593519,30.33244603,159.37,159.27,22.2233]
[1724664593696,46.56945428,159.36,159.27,22.2233]
[1724664593912,1.56945428,159.35,159.27,22.2233]
[1724664594296,390.3,159.34,159.27,22.2233]
[1724664594823,1.56938643,159.33,159.27,22.2233]
[1724664595112,1.56939298,159.32,159.27,22.2233]
[1724664596793,1.56939298,159.32,159.27,15.9837]
[1724664597921,1.56939298,159.32,159.23,21.769]
[1724664598092,390.3,159.31,159.23,21.769]
[1724664598495,1.56971994,159.3,159.23,21.769]
[1724664599027,1.56971994,159.3,159.23,52.10144603]
[1724664599328,390.3,159.31,159.23,52.10144603]
[1724664599923,1.56956491,159.3,159.23,52.10144603]
[1724664600218,1.56956507,159.3,159.23,52.10144603]
[1724664600422,390.3,159.31,159.23,21.769]
[1724664600423,1.56974158,159.29,159.23,21.769]
[1724664601441,1.56974173,159.3,159.23,21.769]
[1724664601628,1.56974214,159.29,159.23,21.769]
[1724664601926,1.56973922,159.3,159.23,21.769]
[1724664602725,390.3,159.31,159.23,52.10144603]
[1724664603234,390.3,159.34,159.23,52.10144603]
[1724664603398,1.569543,159.33,159.23,52.10144603]
[1724664603601,1.569543,159.33,159.24,45.0]
[1724664604924,1.569543,159.33,159.23,52.10144603]
[1724664606334,390.3,159.34,159.25,30.33244603]
[1724664606954,1.56936823,159.33,159.25,30.33244603]
[1724664607124,1.56936919,159.32,159.23,52.10144603]
[1724664607852,1.56936919,159.32,159.24,45.0]
[1724664608233,1.56944765,159.33,159.24,45.0]
[1724664608653,1.56944765,159.33,159.25,30.33244603]
[1724664609156,1.56936925,159.33,159.25,30.33244603]
[1724664610261,1.56940776,159.32,159.23,21.769]
[1724664610433,1.56940776,159.32,159.24,30.33244603]
[1724664613148,1.56944827,159.32,159.24,75.33244603]
[1724664613332,7.8454923,159.34,159.24,30.33244603]
[1724664613547,45.0,159.33,159.23,21.769]
[1724664613863,1.56960755,159.32,159.23,21.769]
[1724664614831,46.56960755,159.32,159.23,21.769]
[1724664615234,390.3,159.31,159.23,21.769]
[1724664615449,1.56980411,159.3,159.23,21.769]
[1724664615758,1.56977257,159.29,159.23,15.6436]
[1724664617654,390.3,159.28,159.19,6.0625]
[1724664617857,1.57007048,159.27,159.19,6.0625]
[1724664618148,1.57007048,159.27,159.18,45.97384603]
[1724664618149,1.57018801,159.26,159.18,15.6414]
[1724664618834,46.57018801,159.26,159.18,15.6414]
[1724664619246,390.3,159.27,159.18,45.97384603]
[1724664619425,390.3,159.27,159.19,1.02899937]
[1724664619827,1.57016936,159.26,159.18,45.97384603]
[1724664620041,390.3,159.27,159.18,45.97384603]
[1724664620265,1.57018835,159.26,159.18,45.97384603]
[1724664621376,1.57016698,159.28,159.18,45.97384603]
[1724664621587,46.57016698,159.28,159.18,45.97384603]
[1724664621754,52.84846698,159.28,159.18,15.6414]
[1724664622560,46.57016698,159.28,159.18,15.6414]
[1724664622758,15.119,159.26,159.17,0.8218083]
[1724664622958,59.10769408,159.25,159.17,0.8218083]
[1724664623260,390.3,159.24,159.17,0.8218083]
[1724664623462,1.57047269,159.23,159.17,0.8218083]
[1724664624776,46.57047269,159.23,159.17,0.8218083]
[1724664625360,396.5807,159.22,159.17,0.8218083]
[1724664625569,1.57079297,159.21,159.17,0.8218083]
[1724664625778,1.57078532,159.2,159.17,0.8218083]
[1724664629157,390.3,159.22,159.17,0.8218083]
[1724664629358,1.57078313,159.21,159.17,0.8218083]
[1724664629658,1.57078446,159.2,159.17,0.8218083]
[1724664630285,390.3,159.21,159.17,0.8218083]
[1724664630460,390.3,159.21,159.18,30.33244603]
[1724664631162,390.3,159.21,159.2,30.33244603]
[1724664632387,396.6235,159.3,159.2,30.33244603]
[1724664632587,396.6235,159.3,159.23,30.33244603]
[1724664632588,1.56982113,159.29,159.23,30.33244603]
[1724664633982,396.4554,159.34,159.25,30.33244603]
[1724664634185,391.86954533,159.33,159.25,30.33244603]
[1724664634359,1.56954656,159.32,159.25,30.33244603]
[1724664634960,1.56954656,159.32,159.25,45.90594603]
[1724664635270,1.56948899,159.32,159.25,45.90594603]
[1724664635471,1.56948659,159.32,159.25,45.90594603]
[1724664636102,390.3,159.33,159.25,45.90594603]
[1724664636611,396.6138,159.38,159.31,30.33244603]
[1724664636775,390.3,159.38,159.31,30.33244603]
[1724664637207,390.3,159.4,159.31,30.33244603]
[1724664637413,390.3,159.4,159.32,1.02575226]
[1724664637579,390.3,159.41,159.32,1.02575226]
[1724664637901,1.56882713,159.4,159.31,30.33244603]
[1724664638196,1.56896736,159.39,159.28,30.33244603]
[1724664638411,1.56896736,159.39,159.29,45.0]
[1724664639284,31.90141339,159.39,159.25,15.5735]
[1724664639487,435.3,159.38,159.25,45.90594603]
[1724664639686,1.56937113,159.37,159.25,45.90594603]
[1724664639883,1.56937113,159.37,159.27,30.33244603]
[1724664640210,1.56937113,159.37,159.29,30.33244603]
[1724664641305,390.3,159.38,159.29,30.33244603]
[1724664641506,390.3,159.38,159.31,30.33244603]
[1724664641882,1.56882064,159.37,159.31,30.33244603]
[1724664642105,1.56882064,159.37,159.29,30.33244603]
[1724664642709,52.84352064,159.37,159.25,45.90594603]
[1724664642931,1.56882064,159.37,159.27,30.33244603]
[1724664644803,390.3,159.36,159.27,30.33244603]
[1724664645821,390.3,159.36,159.28,45.0]
[1724664646026,1.5690558,159.35,159.28,45.0]
[1724664646203,390.3,159.36,159.28,45.0]
[1724664646636,1.5690645,159.35,159.28,45.0]
[1724664646800,390.3,159.36,159.27,30.33244603]
[1724664647002,1.56906742,159.35,159.25,45.90594603]
[1724664647219,1.56906742,159.35,159.26,20.0]
[1724664647798,1.56906742,159.35,159.25,15.5735]
[1724664648048,6.2767,159.32,159.21,46.00634603]
[1724664648245,1.56970254,159.31,159.21,46.00634603]
[1724664648736,390.3,159.33,159.23,30.33244603]